fUSD/lending_fUSD_20260127
["ID","MTS","AMOUNT","RATE_DAILY","PERIOD"]
[403720418,1769508652415,-500.0,0.0002914,2]
[403720419,1769508652424,-500.0,0.0002914,2]
[403720420,1769508652433,-500.0,0.0002914,2]
[403720421,1769508652444,-500.0,0.0002914,2]
[403720422,1769508652453,-500.0,0.0002914,2]
[403720423,1769508652463,-500.0,0.0002914,2]
[403720424,1769508652472,-500.0,0.0002914,2]
[403720425,1769508652482,-500.0,0.0002914,2]
[403720426,1769508652492,-500.0,0.0002914,2]
[403720427,1769508652501,-500.0,0.0002914,2]
[403720428,1769508652511,-500.0,0.0002914,2]
[403720429,1769508652520,-500.0,0.0002914,2]
[403720430,1769508652529,-500.0,0.0002914,2]
[403720431,1769508652539,-500.0,0.0002914,2]
[403720432,1769508652549,-500.0,0.0002914,2]
[403720433,1769508652559,-500.0,0.0002914,2]
[403720434,1769508652569,-500.0,0.0002914,2]
[403720435,1769508652577,-500.0,0.0002914,2]
[403720436,1769508652587,-500.0,0.0002914,2]
[403720437,1769508652596,-500.0,0.0002914,2]
[403720438,1769508652606,-500.0,0.0002914,2]
[403720439,1769508652615,-500.0,0.0002914,2]
[403720440,1769508652624,-799.0,0.0002914,2]
[403720441,1769508652634,-500.0,0.0002914,2]
[403720442,1769508652644,-500.0,0.0002914,2]
[403720443,1769508652653,-503.0,0.00029205,12]
[403720444,1769508652663,-444.68,0.00029272,30]
[403720445,1769508652672,-8449.89796279,0.00029416,2]
[403720446,1769508652682,-533.0,0.00029575,2]
[403720447,1769508652693,-551.5,0.00029576,2]
[403720448,1769508652703,-150.0,0.00029589,2]
[403720449,1769508652712,-1333.0,0.00029638,2]
[403720450,1769508652721,-3477.0,0.00029638,2]
[403720451,1769508652730,-1269.0,0.00029638,2]
[403720452,1769508652739,-184.0,0.00029638,2]
[403720453,1769508652749,-225.23460546,0.00029678,94]
[403720454,1769508652758,-916.0,0.00029724,2]
[403720455,1769508652768,-4831.0,0.00029724,2]
[403720456,1769508652778,-2442.0,0.00029724,2]
[403720457,1769508652787,-265.052,0.00029724,2]
[403720458,1769508652796,-500.0,0.00029726,2]
[403720459,1769508652805,-161.42594505,0.00029773,2]
[403720460,1769508652815,-503.0,0.00029952,13]
[403720461,1769508652825,-422.55009527,0.00029982,2]
[403720462,1769508652834,-1102.0,0.00029989,5]
[403720463,1769508652844,-9454.78406031,0.0003,7]
[403720464,1769508652853,-1026.57437926,0.0003,120]
[403720465,1769508652863,-484.83,0.00030056,2]
[403720466,1769508652872,-873.27110093,0.0003011,30]
[403720467,1769508652883,-691.59834515,0.00030151,2]
[403720468,1769508652893,-338.79,0.000302,30]
[403720469,1769508652902,-150.00248404,0.00030202,41]
[403720470,1769508652911,-160.68858644,0.00030218,120]
[403720471,1769508652921,-2831.0,0.00030267,3]
[403720472,1769508652931,-225.23460546,0.00030401,102]
[403720473,1769508652941,-2831.0,0.00030467,3]
[403720474,1769508652951,-1000.0,0.00030511,7]
[403720475,1769508652961,-162.67,0.000306,120]
[403720476,1769508652971,-503.0,0.00030699,13]
[403720477,1769508652980,-2000.0,0.000308,2]
[403720478,1769508652990,-316.0,0.00031,4]
[403720479,1769508652999,-150.0,0.00031,2]
[403720480,1769508653008,-225.23460546,0.00031124,110]
[403720481,1769508653018,-1500.0,0.000312,2]
[403720482,1769508653028,-503.0,0.00031446,14]
[403720483,1769508653038,-1102.0,0.00031488,5]
[403720484,1769508653048,-150.00248404,0.0003151,44]
[403720485,1769508653058,-551.5,0.00031529,2]
[403720486,1769508653068,-150.0,0.00031885,2]
[403720487,1769508653078,-615.0,0.00031885,2]
[403720488,1769508653088,-8449.89796279,0.00031887,2]
[403720489,1769508653097,-150.0,0.00032055,2]
[403720490,1769508653107,-505.68,0.000321,2]
[403720491,1769508653116,-503.0,0.00032193,15]
[403720492,1769508653126,-1500.0,0.000324,7]
[403720493,1769508653136,-1333.0,0.00032638,2]
[403720494,1769508653145,-3475.0,0.00032638,2]
[403720495,1769508653155,-184.0,0.00032638,2]
[403720496,1769508653165,-916.0,0.00032724,2]
[403720497,1769508653178,-4831.0,0.00032724,2]
[403720498,1769508653188,-2442.0,0.00032724,2]
[403720499,1769508653198,-2831.0,0.00032766,11]
[403720500,1769508653207,-150.00248404,0.00032818,48]
[403720501,1769508653219,-1455.45183489,0.00032849,120]
[403720502,1769508653229,-556.57151572,0.00032877,5]
[403720503,1769508653239,-485.78740996,0.00032877,7]
[403720504,1769508653251,-1571.56,0.000329,14]
[403720505,1769508653260,-948.0,0.000329,14]
[403720506,1769508653270,-2018.57,0.000329,2]
[403720507,1769508653280,-503.0,0.0003294,15]
[403720508,1769508653290,-161.42594505,0.00032949,2]
[403720509,1769508653299,-16120.00754299,0.00033,13]
[403720510,1769508653309,-33202.11538977,0.00033,13]
[403720511,1769508653319,-12803.33987305,0.00033,13]
[403720512,1769508653329,-150.0,0.00033,14]
[403720513,1769508653338,-152.758166,0.00033,31]
[403720514,1769508653348,-152.758166,0.00033,31]
[403720515,1769508653358,-152.758166,0.00033,31]
[403720516,1769508653367,-152.758166,0.00033,31]
[403720517,1769508653377,-201.901907,0.00033,31]
[403720518,1769508653386,-201.901907,0.00033,31]
[403720519,1769508653396,-201.901907,0.00033,31]
[403720520,1769508653405,-201.901907,0.00033,31]
[403720521,1769508653415,-319.739058,0.00033,31]
[403720522,1769508653425,-319.739058,0.00033,31]
[403720523,1769508653435,-319.739058,0.00033,31]
[403720524,1769508653445,-319.739058,0.00033,31]
[403720525,1769508653455,-531.291642,0.00033,7]
[403720526,1769508653464,-531.291642,0.00033,7]
[403720527,1769508653474,-531.291642,0.00033,7]
[403720528,1769508653484,-531.291642,0.00033,7]
[403720529,1769508653493,-697.949439,0.00033,31]
[403720530,1769508653503,-697.949439,0.00033,31]
[403720531,1769508653513,-697.949439,0.00033,31]
[403720532,1769508653523,-697.949439,0.00033,31]
[403720533,1769508653533,-151.0,0.00033062,31]
[403720534,1769508653542,-151.0,0.00033062,31]
[403720535,1769508653551,-1102.0,0.00033062,5]
[403720536,1769508653561,-2831.0,0.00033086,11]
[403720537,1769508653571,-1546.97,0.000332,14]
[403720538,1769508653581,-505.68,0.000333,2]
[403720539,1769508653591,-1571.56,0.000334,14]
[403720540,1769508653601,-948.0,0.000334,14]
[403720541,1769508653610,-151.0,0.000334,31]
[403720542,1769508653621,-151.0,0.000334,31]
[403720543,1769508653630,-151.0,0.000334,31]
[403720544,1769508653640,-2831.0,0.00033406,11]
[403720545,1769508653650,-151.0,0.00033406,31]
[403720546,1769508653659,-401.378532,0.00033406,31]
[403720547,1769508653669,-401.378532,0.00033406,31]
[403720548,1769508653679,-401.378532,0.00033406,31]
[403720549,1769508653689,-401.378532,0.00033406,31]
[403720550,1769508653699,-2831.0,0.00033457,11]
[403720551,1769508653708,-801.180384,0.00033457,31]
[403720552,1769508653718,-801.180384,0.00033457,31]
[403720553,1769508653728,-801.180384,0.00033457,31]
[403720554,1769508653737,-188.836477,0.00033457,31]
[403720555,1769508653747,-801.180384,0.00033457,31]
[403720556,1769508653757,-551.5,0.00033482,5]
[403720557,1769508653766,-2018.57,0.000335,2]
[403720558,1769508653776,-503.0,0.00033687,16]
[403720559,1769508653785,-2000.0,0.000337,7]
[403720560,1769508653795,-613.23,0.00033919,2]
[403720561,1769508653805,-150.00248404,0.00034127,52]
[403720562,1769508653814,-444.68,0.00034319,30]
[403720563,1769508653824,-8449.89796279,0.00034358,2]
[403720564,1769508653834,-1571.56,0.000344,14]
[403720565,1769508653844,-948.0,0.000344,14]
[403720566,1769508653853,-2018.57,0.000344,2]
[403720567,1769508653863,-505.68,0.000344,2]
[403720568,1769508653872,-150.0,0.000344,2]
[403720569,1769508653882,-503.0,0.00034434,17]
[403720570,1769508653892,-2000.0,0.000345,2]
[403720571,1769508653903,-691.59834515,0.00034511,2]
[403720572,1769508653913,-1000.0,0.00034521,7]
[403720573,1769508653922,-150.0,0.00034521,2]
[403720574,1769508653932,-151.0,0.000346,31]
[403720575,1769508653942,-151.0,0.000346,31]
[403720576,1769508653951,-158.56456,0.000346,31]
[403720577,1769508653961,-158.56456,0.000346,31]
[403720578,1769508653972,-158.56456,0.000346,31]
[403720579,1769508653982,-158.56456,0.000346,31]
[403720580,1769508653992,-151.0,0.000346,31]
[403720581,1769508654002,-1133.54170745,0.00034715,5]
[403720582,1769508654012,-1000.0,0.00034795,7]
[403720583,1769508654022,-163.573279,0.00034875,31]
[403720584,1769508654031,-151.0,0.00034875,31]
[403720585,1769508654041,-1226.46,0.00034878,2]
[403720586,1769508654051,-613.23,0.00034878,2]
[403720587,1769508654061,-613.23,0.00034878,2]
[403720588,1769508654071,-613.23,0.00034878,2]
[403720589,1769508654081,-592.01,0.00034878,2]
[403720590,1769508654090,-1312.856495,0.00034885,28]
[403720591,1769508654099,-1312.856495,0.00034885,28]
[403720592,1769508654109,-1312.856495,0.00034885,28]
[403720593,1769508654118,-1312.856495,0.00034885,28]
[403720594,1769508654128,-151.0,0.00034885,31]
[403720595,1769508654137,-151.0,0.00034885,31]
[403720596,1769508654147,-151.0,0.00034885,31]
[403720597,1769508654156,-615.0,0.00034885,2]
[403720598,1769508654166,-1571.56,0.000349,14]
[403720599,1769508654179,-948.0,0.000349,14]
[403720600,1769508654188,-151.0,0.000349,31]
[403720601,1769508654197,-151.0,0.000349,31]
[403720602,1769508654207,-505.68,0.000349,2]
[403720603,1769508654306,-2018.57,0.00035,2]
[403720604,1769508654316,-1963.37,0.00035,7]
[403720605,1769508654328,-1000.0,0.00035068,7]
[403720606,1769508654337,-200.0,0.00035157,5]
[403720607,1769508654347,-200.0,0.00035159,5]
[403720608,1769508654357,-200.0,0.00035159,5]
[403720609,1769508654366,-200.0,0.00035159,5]
[403720610,1769508654375,-200.0,0.0003516,5]
[403720611,1769508654384,-200.0,0.00035162,5]
[403720612,1769508654393,-200.0,0.00035162,5]
[403720613,1769508654402,-200.0,0.00035162,5]
[403720614,1769508654411,-200.0,0.00035163,5]
[403720615,1769508654419,-503.0,0.00035181,18]
[403720616,1769508654428,-1000.0,0.00035342,7]
[403720617,1769508654437,-150.00248428,0.00035435,55]
[403720618,1769508654446,-551.5,0.00035435,7]
[403720619,1769508654455,-1546.97,0.000355,14]
[403720620,1769508654464,-1571.56,0.000355,14]
[403720621,1769508654473,-948.0,0.000355,14]
[403720622,1769508654481,-1066.289933,0.000355,31]
[403720623,1769508654490,-1066.289933,0.000355,31]
[403720624,1769508654499,-1066.289933,0.000355,31]
[403720625,1769508654508,-1066.289933,0.000355,31]
[403720626,1769508654517,-151.0,0.000355,31]
[403720627,1769508654526,-1000.0,0.00035616,7]
[403720628,1769508654534,-195.91020194,0.00035616,7]
[403720629,1769508654543,-600.0,0.00035616,2]
[403720630,1769508654553,-1333.0,0.00035638,2]
[403720631,1769508654562,-916.0,0.00035724,2]
[403720632,1769508654571,-4831.0,0.00035724,2]
[403720633,1769508654580,-2442.0,0.00035724,2]
[403720634,1769508654589,-1000.0,0.0003589,14]
[403720635,1769508654598,-503.0,0.00035928,18]
[403720636,1769508654607,-13692.08131817,0.00036,3]
[403720637,1769508654617,-522.78,0.00036,30]
[403720638,1769508654627,-1000.0,0.00036,60]
[403720639,1769508654636,-2000.0,0.00036,7]
[403720640,1769508654646,-161.42594505,0.00036124,2]
[403720641,1769508654655,-1000.0,0.00036164,14]
[403720642,1769508654667,-600.0,0.00036164,2]
[403720643,1769508654678,-150.64,0.00036434,2]
[403720644,1769508654688,-937.43,0.00036434,2]
[403720645,1769508654698,-150.0,0.00036434,2]
[403720646,1769508654707,-1000.0,0.00036438,14]
[403720647,1769508654716,-1571.56,0.000365,14]
[403720648,1769508654726,-948.0,0.000365,14]
[403720649,1769508654737,-180.02,0.00036521,2]
[403720650,1769508654746,-180.02,0.00036521,2]
[403720651,1769508654755,-468.85,0.00036521,2]
[403720652,1769508654766,-180.02,0.00036521,2]
[403720653,1769508654775,-180.02,0.00036521,2]
[403720654,1769508654785,-468.85,0.00036521,2]
[403720655,1769508654794,-468.85,0.00036521,2]
[403720656,1769508654804,-150.0,0.00036521,2]
[403720657,1769508654814,-250.64,0.00036521,2]
[403720658,1769508654822,-359.76,0.00036521,2]
[403720659,1769508654833,-150.0,0.00036521,2]
[403720660,1769508654841,-468.85,0.00036521,2]
[403720661,1769508654851,-180.02,0.00036521,2]
[403720662,1769508654860,-726.92,0.00036521,2]
[403720663,1769508654869,-468.85,0.00036521,2]
[403720664,1769508654878,-180.02,0.00036521,2]
[403720665,1769508654888,-468.85,0.00036521,2]
[403720666,1769508654898,-172.27,0.00036521,2]
[403720667,1769508654907,-180.02,0.00036521,2]
[403720668,1769508654917,-172.27,0.00036521,2]
[403720669,1769508654927,-300.0,0.00036521,2]
[403720670,1769508654936,-937.7,0.00036521,2]
[403720671,1769508654945,-172.27,0.00036521,2]
[403720672,1769508654955,-360.04,0.00036521,2]
[403720673,1769508654964,-344.54,0.00036521,2]
[403720674,1769508654973,-150.0,0.00036521,2]
[403720675,1769508654983,-937.16,0.00036521,2]
[403720676,1769508654992,-172.27,0.00036521,2]
[403720677,1769508655001,-179.69,0.00036521,2]
[403720678,1769508655011,-172.27,0.00036521,2]
[403720679,1769508655020,-150.0,0.00036521,2]
[403720680,1769508655029,-172.27,0.00036521,2]
[403720681,1769508655038,-503.0,0.00036675,19]
[403720682,1769508655048,-613.23,0.00036685,2]
[403720683,1769508655057,-613.23,0.00036685,2]
[403720684,1769508655067,-613.23,0.00036685,2]
[403720685,1769508655075,-613.23,0.00036685,2]
[403720686,1769508655084,-613.23,0.00036685,2]
[403720687,1769508655093,-613.23,0.00036685,2]
[403720688,1769508655102,-613.23,0.00036685,2]
[403720689,1769508655111,-613.23,0.00036685,2]
[403720690,1769508655120,-613.23,0.00036685,2]
[403720691,1769508655129,-613.23,0.00036685,2]
[403720692,1769508655138,-613.23,0.00036685,2]
[403720693,1769508655147,-613.23,0.00036685,2]
[403720694,1769508655156,-613.23,0.00036685,2]
[403720695,1769508655165,-613.23,0.00036685,2]
[403720696,1769508655177,-613.23,0.00036685,2]
[403720697,1769508655186,-613.23,0.00036685,2]
[403720698,1769508655195,-611.87,0.00036685,2]
[403720699,1769508655204,-1000.0,0.00036712,14]
[403720700,1769508655213,-600.0,0.00036712,2]
[403720701,1769508655224,-169.44904283,0.00036743,59]
[403720702,1769508655233,-969.66,0.00036795,2]
[403720703,1769508655241,-484.83,0.00036795,2]
[403720704,1769508655251,-484.83,0.00036795,2]
[403720705,1769508655259,-484.83,0.00036795,2]
[403720706,1769508655268,-484.83,0.00036795,2]
[403720707,1769508655277,-484.83,0.00036795,2]
[403720708,1769508655286,-8449.89796279,0.00036829,2]
[403720709,1769508655295,-709.12981502,0.0003691,2]
[403720710,1769508655303,-1000.0,0.00036986,14]
[403720711,1769508655312,-150.0,0.00036986,2]
[403720712,1769508655322,-150.0,0.00037,120]
[403720713,1769508655332,-1123.8,0.00037,30]
[403720714,1769508655341,-1000.0,0.00037,90]
[403720715,1769508655351,-150.0,0.00037256,2]
[403720716,1769508655360,-150.0,0.00037256,2]
[403720717,1769508655368,-180.02,0.00037256,2]
[403720718,1769508655378,-389.16,0.00037256,2]
[403720719,1769508655387,-1000.0,0.0003726,14]
[403720720,1769508655395,-600.0,0.0003726,2]
[403720721,1769508655406,-152.0,0.00037265,3]
[403720722,1769508655416,-2831.0,0.00037336,11]
[403720723,1769508655425,-150.0,0.00037343,2]
[403720724,1769508655434,-172.27,0.00037343,2]
[403720725,1769508655444,-150.0,0.00037343,2]
[403720726,1769508655455,-172.27,0.00037343,2]
[403720727,1769508655466,-150.0,0.00037343,2]
[403720728,1769508655477,-172.27,0.00037343,2]
[403720729,1769508655487,-150.0,0.00037343,2]
[403720730,1769508655497,-172.27,0.00037343,2]
[403720731,1769508655507,-172.27,0.00037343,2]
[403720732,1769508655518,-172.27,0.00037343,2]
[403720733,1769508655528,-551.5,0.00037389,30]
[403720734,1769508655538,-1571.56,0.000374,14]
[403720735,1769508655546,-948.0,0.000374,14]
[403720736,1769508655555,-2018.57,0.000374,2]
[403720737,1769508655565,-503.0,0.00037422,20]
[403720738,1769508655574,-600.0,0.00037482,14]
[403720739,1769508655583,-1000.0,0.000375,60]
[403720740,1769508655592,-1000.0,0.00037534,14]
[403720741,1769508655601,-484.83,0.00037644,2]
[403720742,1769508655610,-484.83,0.00037644,2]
[403720743,1769508655620,-484.83,0.00037644,2]
[403720744,1769508655629,-484.83,0.00037644,2]
[403720745,1769508655638,-484.83,0.00037644,2]
[403720746,1769508655647,-484.83,0.00037644,2]
[403720747,1769508655656,-484.83,0.00037644,2]
[403720748,1769508655665,-484.83,0.00037644,2]
[403720749,1769508655674,-484.83,0.00037644,2]
[403720750,1769508655683,-484.83,0.00037644,2]
[403720751,1769508655691,-484.83,0.00037644,2]
[403720752,1769508655700,-484.83,0.00037644,2]
[403720753,1769508655709,-484.83,0.00037644,2]
[403720754,1769508655719,-484.83,0.00037644,2]
[403720755,1769508655728,-484.83,0.00037644,2]
[403720756,1769508655738,-484.83,0.00037644,2]
[403720757,1769508655747,-484.83,0.00037644,2]
[403720758,1769508655756,-484.83,0.00037644,2]
[403720759,1769508655765,-484.83,0.00037644,2]
[403720760,1769508655774,-484.83,0.00037644,2]
[403720761,1769508655783,-484.83,0.00037644,2]
[403720762,1769508655803,-484.83,0.00037644,2]
[403720763,1769508655812,-484.83,0.00037644,2]
[403720764,1769508655821,-484.42,0.00037644,2]
[403720765,1769508655830,-150.0,0.00037644,2]
[403720766,1769508655839,-1231.93,0.00037644,2]
[403720767,1769508655848,-559.04,0.00037644,2]
[403720768,1769508655857,-150.22,0.00037644,2]
[403720769,1769508655867,-150.0,0.00037644,2]
[403720770,1769508655876,-937.06,0.00037644,2]
[403720771,1769508655885,-1231.93,0.00037644,2]
[403720772,1769508655894,-559.04,0.00037644,2]
[403720773,1769508655904,-172.27,0.00037644,2]
[403720774,1769508655913,-150.0,0.00037644,2]
[403720775,1769508655922,-150.0,0.00037644,2]
[403720776,1769508655932,-150.0,0.00037644,2]
[403720777,1769508655942,-150.0,0.00037644,2]
[403720778,1769508655951,-172.27,0.00037644,2]
[403720779,1769508655960,-1231.93,0.00037644,2]
[403720780,1769508655970,-936.78,0.00037644,2]
[403720781,1769508655979,-559.04,0.00037644,2]
[403720782,1769508655989,-185.63,0.00037644,2]
[403720783,1769508655999,-172.27,0.00037644,2]
[403720784,1769508656008,-150.0,0.00037644,2]
[403720785,1769508656018,-150.0,0.00037644,2]
[403720786,1769508656027,-559.04,0.00037644,2]
[403720787,1769508656036,-172.27,0.00037644,2]
[403720788,1769508656045,-559.04,0.00037644,2]
[403720789,1769508656054,-150.0,0.00037644,2]
[403720790,1769508656065,-171.94,0.00037644,2]
[403720791,1769508656074,-559.04,0.00037644,2]
[403720792,1769508656083,-150.0,0.00037644,2]
[403720793,1769508656095,-150.0,0.00037644,2]
[403720794,1769508656105,-150.0,0.00037644,2]
[403720795,1769508656114,-484.83,0.00037754,2]
[403720796,1769508656124,-484.83,0.00037754,2]
[403720797,1769508656133,-468.72,0.00037754,2]
[403720798,1769508656142,-800.0,0.00037756,14]
[403720799,1769508656152,-500.0,0.00037756,14]
[403720800,1769508656161,-900.0,0.000378,14]
[403720801,1769508656171,-900.0,0.000378,14]
[403720802,1769508656184,-900.0,0.000378,14]
[403720803,1769508656195,-900.0,0.000378,14]
[403720804,1769508656206,-900.0,0.000378,14]
[403720805,1769508656215,-900.0,0.000378,14]
[403720806,1769508656224,-1233.14,0.000378,14]
[403720807,1769508656233,-1000.0,0.00037808,14]
[403720808,1769508656242,-600.0,0.00037808,2]
[403720809,1769508656252,-615.0,0.00037885,2]
[403720810,1769508656262,-1546.97,0.000379,14]
[403720811,1769508656273,-2018.57,0.000379,2]
[403720812,1769508656282,-250.0,0.00038,45]
[403720813,1769508656292,-250.0,0.00038,45]
[403720814,1769508656301,-250.0,0.00038,45]
[403720815,1769508656311,-200.0,0.00038,120]
[403720816,1769508656320,-1000.0,0.00038,90]
[403720817,1769508656329,-505.68,0.00038,2]
[403720818,1769508656338,-6906.69,0.00038001,2]
[403720819,1769508656347,-169.44904283,0.00038051,63]
[403720820,1769508656356,-1000.0,0.00038082,14]
[403720821,1769508656365,-1832.0,0.0003815,30]
[403720822,1769508656374,-2831.0,0.0003816,11]
[403720823,1769508656383,-2897.02985167,0.00038162,2]
[403720824,1769508656392,-503.0,0.00038169,20]
[403720825,1769508656401,-2000.0,0.000382,2]
[403720826,1769508656411,-12129.0,0.00038218,20]
[403720827,1769508656420,-168.61681877,0.00038256,2]
[403720828,1769508656430,-600.0,0.00038304,14]
[403720829,1769508656439,-151.0,0.00038356,120]
[403720830,1769508656448,-151.0,0.00038356,120]
[403720831,1769508656457,-151.0,0.00038356,120]
[403720832,1769508656465,-151.0,0.00038356,120]
[403720833,1769508656476,-151.0,0.00038356,120]
[403720834,1769508656486,-151.0,0.00038356,120]
[403720835,1769508656495,-151.0,0.00038356,120]
[403720836,1769508656506,-188.202008,0.00038356,120]
[403720837,1769508656517,-151.0,0.00038356,120]
[403720838,1769508656527,-151.0,0.00038356,120]
[403720839,1769508656536,-151.0,0.00038356,120]
[403720840,1769508656545,-206.24322,0.00038356,120]
[403720841,1769508656555,-401.378532,0.00038356,120]
[403720842,1769508656565,-401.378532,0.00038356,120]
[403720843,1769508656575,-401.378532,0.00038356,120]
[403720844,1769508656585,-401.378532,0.00038356,120]
[403720845,1769508656595,-401.378532,0.00038356,120]
[403720846,1769508656607,-401.378532,0.00038356,120]
[403720847,1769508656617,-401.378532,0.00038356,120]
[403720848,1769508656627,-401.378542,0.00038356,120]
[403720849,1769508656637,-158.56456,0.00038356,120]
[403720850,1769508656647,-158.56456,0.00038356,120]
[403720851,1769508656656,-158.56456,0.00038356,120]
[403720852,1769508656666,-158.56456,0.00038356,120]
[403720853,1769508656676,-158.56456,0.00038356,120]
[403720854,1769508656686,-158.56456,0.00038356,120]
[403720855,1769508656696,-158.56456,0.00038356,120]
[403720856,1769508656707,-158.56457,0.00038356,120]
[403720857,1769508656716,-151.0,0.00038356,120]
[403720858,1769508656728,-151.0,0.00038356,120]
[403720859,1769508656740,-151.0,0.00038356,120]
[403720860,1769508656750,-151.0,0.00038356,120]
[403720861,1769508656759,-151.0,0.00038356,120]
[403720862,1769508656768,-151.0,0.00038356,120]
[403720863,1769508656777,-151.0,0.00038356,120]
[403720864,1769508656801,-270.238883,0.00038356,120]
[403720865,1769508656810,-152.758166,0.00038356,120]
[403720866,1769508656821,-152.758166,0.00038356,120]
[403720867,1769508656831,-152.758166,0.00038356,120]
[403720868,1769508656840,-152.758166,0.00038356,120]
[403720869,1769508656849,-152.758166,0.00038356,120]
[403720870,1769508656858,-152.758166,0.00038356,120]
[403720871,1769508656867,-152.758166,0.00038356,120]
[403720872,1769508656875,-152.758161,0.00038356,120]
[403720873,1769508656885,-201.901907,0.00038356,120]
[403720874,1769508656894,-201.901907,0.00038356,120]
[403720875,1769508656904,-201.901907,0.00038356,120]
[403720876,1769508656914,-201.901907,0.00038356,120]
[403720877,1769508656923,-201.901907,0.00038356,120]
[403720878,1769508656933,-201.901907,0.00038356,120]
[403720879,1769508656942,-201.901907,0.00038356,120]
[403720880,1769508656951,-201.901904,0.00038356,120]
[403720881,1769508656961,-151.0,0.00038356,120]
[403720882,1769508656970,-151.0,0.00038356,120]
[403720883,1769508656979,-151.0,0.00038356,120]
[403720884,1769508656988,-151.0,0.00038356,120]
[403720885,1769508656997,-801.180384,0.00038356,120]
[403720886,1769508657007,-801.180384,0.00038356,120]
[403720887,1769508657016,-801.180384,0.00038356,120]
[403720888,1769508657025,-801.180384,0.00038356,120]
[403720889,1769508657034,-801.180384,0.00038356,120]
[403720890,1769508657043,-801.180384,0.00038356,120]
[403720891,1769508657052,-801.180384,0.00038356,120]
[403720892,1769508657061,-801.180375,0.00038356,120]
[403720893,1769508657071,-1312.856495,0.00038356,28]
[403720894,1769508657079,-1312.856495,0.00038356,28]
[403720895,1769508657088,-1312.856495,0.00038356,28]
[403720896,1769508657097,-1312.856495,0.00038356,28]
[403720897,1769508657107,-1312.856495,0.00038356,28]
[403720898,1769508657116,-1312.856495,0.00038356,28]
[403720899,1769508657125,-1312.856495,0.00038356,28]
[403720900,1769508657135,-1312.85649296,0.00038356,28]
[403720901,1769508657144,-151.0,0.00038356,120]
[403720902,1769508657153,-151.0,0.00038356,120]
[403720903,1769508657163,-151.0,0.00038356,120]
[403720904,1769508657173,-151.0,0.00038356,120]
[403720905,1769508657185,-151.0,0.00038356,120]
[403720906,1769508657194,-151.0,0.00038356,120]
[403720907,1769508657204,-1066.289933,0.00038356,120]
[403720908,1769508657216,-1066.289933,0.00038356,120]
[403720909,1769508657225,-1066.289933,0.00038356,120]
[403720910,1769508657237,-1066.289933,0.00038356,120]
[403720911,1769508657248,-1066.289933,0.00038356,120]
[403720912,1769508657258,-1066.289933,0.00038356,120]
[403720913,1769508657268,-1066.289933,0.00038356,120]
[403720914,1769508657278,-1066.289937,0.00038356,120]
[403720915,1769508657289,-319.739058,0.00038356,120]
[403720916,1769508657299,-319.739058,0.00038356,120]
[403720917,1769508657308,-319.739058,0.00038356,120]